bitfinex/quotes_SOLUSD_20240705
["timestamp","ask_amount","ask_price","bid_price","bid_amount"]
[1720177484756,7.7626,128.83,128.74,20.0]
[1720177484925,7.9317,128.84,128.74,20.0]
[1720177485336,7.7621,128.83,128.74,20.0]
[1720177485530,7.9317,128.84,128.75,200.0]
[1720177485848,14.6691065,128.85,128.77,100.0]
[1720177486837,14.6691065,128.85,128.77,200.0]
[1720177487147,6.5591,128.85,128.81,100.0]
[1720177488270,6.1298,128.89,128.83,100.0]
[1720177488571,6.1298,128.89,128.85,100.0]
[1720177488743,6.6313,128.93,128.85,200.0]
[1720177489447,6.6313,128.93,128.87,100.0]
[1720177490376,6.6313,128.93,128.87,200.0]
[1720177491384,6.6313,128.93,128.87,100.0]
[1720177492148,6.6313,128.93,128.86,0.17]
[1720177492149,14.3879,128.93,128.86,0.17]
[1720177493044,6.6313,128.93,128.87,100.0]
[1720177493352,6.6313,128.93,128.86,0.17]
[1720177493542,14.3878,128.93,128.85,100.0]
[1720177493742,6.6313,128.93,128.83,200.0]
[1720177493968,7.7577,128.91,128.83,100.0]
[1720177494146,26.0224,128.93,128.81,200.0]
[1720177494349,59.2,128.92,128.83,200.0]
[1720177494687,7.7575,128.91,128.81,200.0]
[1720177494868,7.7579,128.9,128.81,200.0]
[1720177495070,7.7588,128.89,128.81,100.0]
[1720177495665,16.5149,128.88,128.81,200.0]
[1720177495877,16.5149,128.88,128.83,100.0]
[1720177496190,16.5149,128.88,128.81,200.0]
[1720177496368,16.634,128.91,128.84,200.0]
[1720177497298,2.76199457,128.93,128.84,200.0]
[1720177497470,30.51819457,128.93,128.84,200.0]
[1720177497671,7.7568,128.92,128.84,200.0]
[1720177497904,7.7575,128.91,128.82,100.17]
[1720177498199,7.7575,128.91,128.83,20.0]
[1720177498992,7.758,128.9,128.83,20.0]
[1720177499295,7.7574,128.91,128.83,20.0]
[1720177500203,19.2391,128.92,128.83,120.0]
[1720177500383,19.2391,128.92,128.82,100.17]
[1720177500384,11.4823,128.92,128.82,0.17]
[1720177500570,7.7584,128.9,128.81,100.17]
[1720177501102,7.7586,128.89,128.8,100.0]
[1720177501597,0.17,128.9,128.8,100.0]
[1720177501801,11.3123,128.88,128.78,100.0]
[1720177502002,11.3123,128.88,128.75,121.9004]
[1720177502003,7.7609,128.86,128.76,100.0]
[1720177502532,20.17,128.87,128.78,100.0]
[1720177502533,27.9297,128.87,128.78,100.0]
[1720177503021,7.7603,128.86,128.78,100.0]
[1720177503199,20.17,128.87,128.78,100.0]
[1720177503200,20.0,128.87,128.78,100.0]
[1720177503397,58.102,128.88,128.79,0.17]
[1720177503607,11.3123,128.88,128.8,200.0]
[1720177503795,8.11030267,128.93,128.79,0.17]
[1720177503796,11.3123,128.92,128.86,100.0]
[1720177504127,6.273,128.93,128.87,100.0]
[1720177504603,6.273,128.93,128.88,100.0]
[1720177506307,8.10264992,128.96,128.91,200.0]
[1720177506513,6.1144,129.0,128.93,200.0]
[1720177507216,25.30728771,129.03,128.93,200.0]
[1720177507603,7.7508,129.02,128.93,200.0]
[1720177509536,7.7508,129.02,128.91,100.0]
[1720177509537,39.03,129.02,128.91,100.0]
[1720177509701,17.55708771,129.03,128.95,100.0]
[1720177509904,11.3123,129.03,128.93,223.31]
[1720177510221,19.0626,129.03,128.93,100.0]
[1720177510534,7.7507,129.02,128.93,100.0]
[1720177510719,19.0626,129.03,128.94,100.0]
[1720177511209,7.9207,129.02,128.93,100.0]
[1720177511605,7.9207,129.02,128.9,7.7578]
[1720177511606,0.17,129.02,128.9,100.0]
[1720177511910,0.17,129.02,128.93,100.0]
[1720177512118,7.9211,129.02,128.92,100.0]
[1720177512429,0.17,129.02,128.93,100.0]
[1720177512623,59.89137899,129.04,128.95,100.0]
[1720177512929,6.5016,129.04,128.95,100.0]
[1720177513300,6.5016,129.04,128.97,100.0]
[1720177513497,8.10230425,129.06,128.99,100.0]
[1720177513696,30.6804,129.08,128.94,200.0]
[1720177513928,8.10254983,129.06,128.95,20.0]
[1720177514107,7.7505,129.03,128.95,20.0]
[1720177514303,8.10254983,129.06,128.95,20.0]
[1720177514513,8.10254983,129.06,128.97,100.0]
[1720177514730,15.85084983,129.06,128.95,120.0]
[1720177514909,7.749,129.05,128.95,120.0]
[1720177515231,15.85094983,129.06,128.95,120.0]
[1720177515525,15.85094983,129.06,128.96,100.17]
[1720177515526,15.85084983,129.06,128.96,100.17]
[1720177515702,7.7491,129.05,128.96,100.17]
[1720177515898,7.7491,129.05,128.95,120.0]
[1720177516316,8.10254983,129.06,128.96,100.0]
[1720177516510,8.10254983,129.06,128.98,100.0]
[1720177516712,8.10254983,129.06,128.99,100.17]
[1720177517019,6.4187,129.09,128.98,100.0]
[1720177517526,6.4187,129.09,128.99,100.17]
[1720177517527,14.1652,129.09,128.99,100.17]
[1720177517825,6.4187,129.09,129.0,100.0]
[1720177518023,14.1653,129.09,128.99,100.17]
[1720177518230,6.4187,129.09,129.01,100.0]
[1720177518806,7.7479,129.07,128.96,100.0]
[1720177519105,6.4187,129.09,128.98,100.0]
[1720177519307,14.1657,129.09,128.98,100.0]
[1720177519518,6.4187,129.09,128.98,100.0]
[1720177519917,20.17,129.08,128.95,200.0]
[1720177520114,20.17,129.08,128.96,20.0]
[1720177520115,27.32903198,129.08,128.96,20.0]
[1720177520512,27.32903198,129.08,128.94,100.0]
[1720177520819,7.7496,129.04,128.94,100.0]
[1720177521116,6.0928,129.02,128.94,100.0]
[1720177522027,6.0928,129.02,128.93,100.0]
[1720177522230,0.17,129.01,128.92,100.0]
[1720177522412,7.9213,129.01,128.91,100.0]
[1720177522615,7.9213,129.01,128.89,141.3019]
[1720177522616,7.7519,129.0,128.89,100.0]
[1720177522824,6.0928,129.02,128.9,100.0]
[1720177523008,27.9216,129.01,128.91,100.0]
[1720177525731,0.17,128.98,128.89,100.0]
[1720177526038,0.17,128.99,128.89,100.0]
[1720177526237,0.17,128.99,128.9,100.0]
[1720177526734,20.0,129.01,128.91,100.0]
[1720177527225,12.33142668,129.02,128.91,107.7572]
[1720177527443,12.33142668,129.02,128.92,20.0]
[1720177527945,11.3123,129.04,128.96,200.0]
[1720177528235,6.6379,129.06,128.98,200.0]
[1720177528910,6.6379,129.06,129.0,100.0]
[1720177531231,11.3123,129.08,129.01,100.0]
[1720177531435,14.38390244,129.1,129.01,100.0]
[1720177531839,7.7465,129.09,129.0,100.0]
[1720177532014,7.7466,129.09,129.0,100.0]
[1720177532317,15.25910562,129.09,129.01,100.0]
[1720177532511,7.15903198,129.09,129.01,100.0]
[1720177533041,6.2837,129.1,129.01,100.0]
[1720177533420,14.0298,129.1,128.99,100.17]
[1720177533733,6.2837,129.1,129.0,20.0]
[1720177534225,14.0301,129.1,129.0,20.0]
[1720177534426,6.2837,129.1,129.0,20.0]
[1720177534749,0.17,129.09,129.0,120.0]
[1720177534914,7.9165,129.09,129.0,20.0]
[1720177535313,0.17,129.09,129.0,120.0]
[1720177535545,7.9167,129.09,129.0,20.0]
[1720177535830,11.3123,129.08,128.96,100.0]
[1720177536135,0.17,129.07,128.96,100.0]
[1720177536327,0.17,129.07,128.97,100.0]
[1720177536328,7.9178,129.07,128.97,100.0]
[1720177536631,7.9179,129.07,128.97,100.0]
[1720177536837,0.17,129.07,128.98,100.0]
[1720177537139,0.17,129.07,129.0,100.0]
[1720177537337,11.3123,129.08,129.0,100.0]
[1720177537715,11.3123,129.08,128.97,19.3834]
[1720177537716,7.9178,129.07,128.97,100.0]
[1720177538232,0.17,129.07,128.99,100.0]
[1720177538736,11.3123,129.08,129.01,100.0]
[1720177538924,11.3123,129.08,129.02,1.21381499]
[1720177539433,17.596,129.1,129.03,100.0]
[1720177539642,11.3123,129.13,129.05,100.0]
[1720177540645,19.0566,129.13,129.05,100.0]
[1720177540849,11.3123,129.13,129.05,100.0]
[1720177541045,6.377,129.14,129.07,200.0]
[1720177541357,8.09693622,129.15,129.07,200.0]
[1720177541546,11.3123,129.16,129.08,0.17]
[1720177541868,11.3123,129.16,129.07,200.0]
[1720177542165,11.3123,129.16,129.08,0.17]
[1720177543864,19.0547,129.16,129.05,200.0]
[1720177544048,19.0547,129.16,129.07,100.0]
[1720177545735,0.17,129.15,129.07,100.0]
[1720177545932,0.17,129.15,129.07,200.0]
[1720177546162,11.3123,129.16,129.07,200.0]
[1720177546373,11.3123,129.16,129.09,200.0]
[1720177546544,11.3123,129.16,129.08,0.17]
[1720177546864,11.3123,129.16,129.09,100.0]
[1720177547939,19.0551,129.16,129.07,200.0]
[1720177548140,11.3123,129.16,129.07,200.0]
[1720177548350,11.3123,129.16,129.09,200.0]
[1720177548741,11.3123,129.16,129.11,100.0]
[1720177548945,15.42417434,129.18,129.11,100.0]
[1720177549276,15.42417434,129.18,129.1,0.17]
[1720177549277,0.8766903,129.18,129.13,200.0]
[1720177549638,0.8766903,129.18,129.11,100.0]
[1720177549870,0.8766903,129.18,129.12,20.0]
[1720177550167,0.8766903,129.18,129.11,100.0]
[1720177550669,0.8766903,129.18,129.12,100.0]
[1720177551242,0.8766903,129.18,129.14,100.0]
[1720177551566,0.8766903,129.18,129.15,200.0]
[1720177552775,0.8766903,129.18,129.13,200.17]
[1720177553272,0.8766903,129.18,129.13,0.17]
[1720177553455,0.8766903,129.18,129.13,100.0]
[1720177553643,0.8766903,129.18,129.15,100.0]
[1720177554172,0.8766903,129.18,129.15,200.0]
[1720177555272,0.8766903,129.18,129.15,100.0]
[1720177556881,0.8766903,129.18,129.14,0.17]
[1720177557078,8.6182903,129.18,129.09,100.0]
[1720177557369,0.17,129.17,129.09,100.0]
[1720177557571,7.9118,129.17,129.08,100.0]
[1720177557751,7.9118,129.17,129.07,100.0]
[1720177557752,11.3123,129.15,129.07,100.0]
[1720177558155,11.3123,129.15,129.09,100.0]
[1720177559944,6.5704,129.14,129.07,200.0]
[1720177560167,6.5704,129.14,129.08,20.0]
[1720177560346,6.5704,129.14,129.04,100.0]
[1720177560558,7.9143,129.13,129.04,100.0]
[1720177561245,7.7448,129.12,129.02,100.0]
[1720177561448,0.17,129.11,129.02,100.0]
[1720177561649,0.17,129.11,129.03,100.0]
[1720177561951,7.7443,129.13,129.04,100.0]
[1720177562154,0.17,129.12,129.04,100.0]
[1720177562576,11.3123,129.1,129.01,100.0]
[1720177562871,6.25,129.08,128.99,100.0]
[1720177563273,6.25,129.08,128.97,100.0]
[1720177563487,0.17,129.07,128.97,100.0]
[1720177563677,6.25,129.08,129.02,100.0]
[1720177563853,13.9971,129.08,128.99,100.0]
[1720177564171,7.9178,129.07,128.97,100.0]
[1720177564362,0.17,129.07,128.99,100.0]
[1720177564747,0.17,129.07,128.98,100.0]
[1720177566056,0.17,129.07,128.99,100.0]
[1720177566456,7.7488,129.06,128.96,100.0]
[1720177566763,0.17,129.05,128.96,100.0]
[1720177566951,0.17,129.05,128.96,200.0]
[1720177567453,0.17,129.05,128.96,100.0]
[1720177567778,7.9189,129.05,128.94,219.3885]
[1720177568082,7.9189,129.05,128.95,20.17]
[1720177568960,0.17,129.05,128.95,20.17]
[1720177569157,11.3123,129.04,128.95,20.0]
[1720177569370,6.4536,129.02,128.95,20.0]
[1720177569686,6.4536,129.02,128.89,100.0]
[1720177569888,11.3123,128.98,128.89,100.0]
[1720177570060,0.17,128.97,128.89,100.0]
[1720177570856,11.3123,128.98,128.91,100.0]
[1720177571385,11.3123,128.98,128.91,200.0]
[1720177571570,11.3123,128.98,128.91,100.0]
[1720177571753,11.3123,128.98,128.92,100.0]
[1720177572057,11.3123,128.98,128.91,100.0]
[1720177572253,11.3123,128.98,128.92,100.0]
[1720177572454,17.7659,129.02,128.94,200.0]
[1720177572684,19.3825,128.99,128.86,106.25576404]
[1720177572857,7.7539,128.97,128.86,100.0]
[1720177573058,7.7539,128.97,128.85,114.3461]
[1720177573059,26.05021079,128.98,128.91,100.0]
[1720177573498,17.9433,128.98,128.89,100.0]
[1720177573686,17.9433,128.98,128.89,200.0]
[1720177573861,17.9433,128.98,128.89,100.0]
[1720177573862,25.6965,128.98,128.89,100.0]
[1720177574183,7.9238,128.97,128.87,100.0]
[1720177574375,0.17,128.97,128.88,20.0]
[1720177574572,7.9238,128.97,128.88,20.0]
[1720177575084,7.7545,128.96,128.88,20.0]
[1720177575283,0.17,128.95,128.86,20.0]
[1720177575458,0.17,128.95,128.87,200.0]
[1720177575661,17.9433,128.98,128.89,200.0]
[1720177575878,0.17,128.97,128.89,200.0]
[1720177576176,0.17,128.97,128.87,207.7595]
[1720177576373,0.17,128.97,128.89,200.0]
[1720177576778,17.9433,128.98,128.91,100.0]
[1720177577086,17.9433,128.98,128.91,200.0]
[1720177578388,17.9433,128.98,128.93,200.0]
[1720177578776,17.9433,128.98,128.93,100.0]
[1720177579183,17.9433,128.98,128.91,107.7572]
[1720177579184,6.631,128.98,128.91,207.7572]
[1720177579411,6.631,128.98,128.87,200.0]
[1720177579692,14.3845,128.98,128.89,200.0]
[1720177579899,14.3845,128.98,128.87,200.0]
[1720177580267,14.3845,128.98,128.87,223.31]
[1720177580488,14.3845,128.98,128.89,100.0]
[1720177580765,6.631,128.98,128.92,100.0]
[1720177580967,6.631,128.98,128.93,100.0]
[1720177581277,6.631,128.98,128.94,100.0]
[1720177581470,11.3123,129.01,128.95,100.0]
[1720177581785,11.3123,129.01,128.95,200.0]
[1720177582176,11.3123,128.95,128.89,100.0]
[1720177582493,11.3123,128.95,128.89,200.0]
[1720177583789,6.2137,128.94,128.83,100.0]
[1720177584091,7.7565,128.93,128.86,100.0]
[1720177584297,7.7562,128.93,128.86,200.0]
[1720177584501,7.7571,128.92,128.84,100.0]
[1720177584665,7.7573,128.91,128.84,100.0]
[1720177584875,7.7569,128.92,128.84,200.0]
[1720177585291,7.7569,128.92,128.82,200.0]
[1720177585501,7.7569,128.92,128.84,200.0]
[1720177585679,7.7563,128.93,128.84,200.0]
[1720177585882,0.17,128.92,128.84,200.0]
[1720177586078,13.7993,128.94,128.86,100.0]
[1720177586277,13.7993,128.94,128.84,100.0]
[1720177586502,7.7562,128.93,128.84,200.0]
[1720177587203,0.17,128.92,128.84,200.0]
[1720177587501,0.17,128.92,128.84,100.0]
[1720177588102,0.17,128.92,128.84,200.0]
[1720177588481,0.17,128.92,128.84,100.0]
[1720177589183,13.7993,128.94,128.85,100.0]
[1720177589395,0.17,128.93,128.85,100.0]
[1720177589575,13.7993,128.94,128.84,100.0]
[1720177589576,6.0437,128.94,128.84,100.0]
[1720177589770,0.17,128.93,128.84,200.0]
[1720177589975,6.0437,128.94,128.86,200.0]
[1720177590176,13.7994,128.94,128.86,100.0]
[1720177590378,7.9265,128.93,128.84,100.0]
[1720177590680,7.7567,128.92,128.84,100.0]
[1720177590900,7.9263,128.93,128.84,100.0]
[1720177591902,7.7576,128.91,128.81,106.4075]
[1720177592108,7.928,128.9,128.82,20.0]
[1720177592393,6.4535,128.89,128.82,20.0]
[1720177592602,6.2835,128.89,128.83,100.0]
[1720177592974,6.2835,128.89,128.84,100.0]
[1720177593986,6.2835,128.89,128.86,100.0]
[1720177594200,11.3123,128.92,128.84,100.0]
[1720177594401,11.3123,128.92,128.85,20.0]
[1720177594988,11.3123,128.92,128.83,100.17]
[1720177595187,19.0692,128.92,128.83,100.17]
[1720177595390,19.0692,128.92,128.84,20.0]
[1720177595789,11.3123,128.92,128.85,100.0]
[1720177596405,11.3123,128.92,128.84,120.0]
[1720177599103,11.3123,128.92,128.87,100.0]
[1720177599887,11.3123,128.92,128.85,100.0]
[1720177600092,11.3123,128.92,128.86,20.0]
[1720177600807,11.3123,128.92,128.84,100.0]
[1720177601045,11.3123,128.92,128.82,200.0]
[1720177601317,11.3123,128.92,128.83,20.0]
[1720177602313,0.17,128.91,128.83,20.0]
[1720177604311,6.1423,128.9,128.78,19.4118]
[1720177604516,0.17,128.89,128.78,27.1769]
[1720177604897,7.9286,128.89,128.79,100.0]
[1720177605595,19.0714,128.88,128.77,116.643]
[1720177605797,0.17,128.87,128.77,100.0]
[1720177606205,7.9299,128.87,128.77,100.0]
[1720177606523,6.282,128.86,128.77,100.0]
[1720177606694,0.17,128.85,128.77,100.0]
[1720177606897,0.17,128.85,128.75,219.4164]
[1720177607099,0.17,128.85,128.76,20.0]
[1720177607818,11.3123,128.84,128.73,200.8766903]
[1720177608027,7.9324,128.83,128.73,100.8766903]
[1720177608197,0.17,128.83,128.73,100.8766903]
[1720177608403,7.9322,128.83,128.73,100.8766903]
[1720177608635,0.17,128.83,128.73,208.6447903]
[1720177608806,11.3123,128.84,128.76,100.0]
[1720177608999,6.282,128.86,128.79,100.0]
[1720177609195,6.282,128.86,128.79,7.7643]
[1720177609428,6.282,128.86,128.78,100.0]
[1720177609726,6.282,128.86,128.79,0.17]
[1720177609941,6.282,128.86,128.79,120.0]
[1720177610295,6.282,128.86,128.8,100.0]
[1720177613098,6.282,128.86,128.79,20.0]
[1720177614014,6.282,128.86,128.79,120.0]
[1720177614825,6.282,128.86,128.75,100.0]
[1720177615034,6.282,128.86,128.74,100.0]
[1720177615035,0.17,128.85,128.73,134.1341903]
[1720177615212,0.17,128.85,128.77,100.0]
[1720177615831,0.17,128.85,128.77,200.0]
[1720177616053,0.17,128.85,128.75,100.0]
[1720177616234,7.7623,128.83,128.73,206.9457903]
[1720177616436,11.3123,128.82,128.73,200.8766903]
[1720177616619,11.3123,128.82,128.73,100.8766903]
[1720177617241,6.0451,128.81,128.73,200.8766903]
[1720177617917,6.0451,128.81,128.73,100.8766903]
[1720177618122,7.7641,128.8,128.73,0.8766903]
[1720177618433,0.17,128.8,128.73,0.8766903]
[1720177618833,6.0451,128.81,128.73,100.8766903]
[1720177619154,6.0451,128.81,128.74,100.0]
[1720177619523,6.0451,128.81,128.76,200.0]
[1720177620373,6.0451,128.81,128.73,0.8766903]
[1720177620658,6.0451,128.81,128.73,100.8766903]
[1720177621420,6.0451,128.81,128.73,0.8766903]
[1720177621626,0.17,128.8,128.73,0.8766903]
[1720177622440,6.0451,128.81,128.73,200.8766903]
[1720177622942,6.0451,128.81,128.75,200.0]
[1720177623520,6.0451,128.81,128.77,100.0]
[1720177623722,11.3123,128.86,128.81,200.0]
[1720177623941,8.11386316,128.87,128.83,200.0]
[1720177624138,17.4426,128.9,128.85,100.0]
[1720177624342,17.4426,128.9,128.83,107.7616]
[1720177624343,17.4426,128.9,128.83,200.0]
[1720177624550,17.4426,128.9,128.85,200.0]
[1720177625127,17.4426,128.9,128.84,20.0]
[1720177625331,17.4426,128.9,128.82,0.17]
[1720177625529,17.4426,128.9,128.82,20.17]
[1720177625772,17.4426,128.9,128.83,100.0]
[1720177626326,6.1303,128.9,128.85,200.0]
[1720177626551,6.1303,128.9,128.84,0.17]
[1720177626761,6.1303,128.9,128.85,200.0]
[1720177627366,6.1303,128.9,128.83,19.4046]
[1720177627367,6.1303,128.9,128.83,100.0]
[1720177627534,6.1303,128.9,128.72,77.75580121]
[1720177627535,7.7587,128.89,128.79,200.0]
[1720177627738,6.1303,128.9,128.81,200.0]
[1720177627941,6.3003,128.9,128.81,200.0]
[1720177628251,6.3003,128.9,128.83,100.0]
[1720177628446,6.1303,128.9,128.83,200.0]
[1720177628959,6.1303,128.9,128.84,20.0]
[1720177629252,6.1303,128.9,128.86,100.0]
[1720177629645,6.1303,128.9,128.84,20.0]
[1720177629843,6.1303,128.9,128.85,100.0]
[1720177632153,0.17,128.9,128.83,20.0]
[1720177632354,6.0182,128.93,128.8,200.0]
[1720177632545,6.0182,128.91,128.8,100.0]
[1720177632867,0.17,128.9,128.8,100.0]
[1720177633036,7.7586,128.89,128.8,200.0]
[1720177633241,6.0182,128.91,128.83,100.0]
[1720177633559,6.0182,128.91,128.84,100.0]
[1720177633736,6.0182,128.91,128.86,100.0]
[1720177634547,6.0182,128.91,128.84,100.0]
[1720177635342,6.0182,128.91,128.83,100.17]
[1720177635543,6.0182,128.91,128.85,100.0]
[1720177636055,6.0182,128.91,128.84,20.0]
[1720177636439,6.0182,128.91,128.84,120.0]
[1720177636657,6.0182,128.91,128.84,20.0]
[1720177636971,6.0182,128.91,128.85,200.0]
[1720177637361,6.0182,128.91,128.85,100.0]
[1720177638048,6.0182,128.91,128.85,200.0]
[1720177639378,6.0182,128.91,128.84,20.0]
[1720177640053,6.0182,128.91,128.85,100.0]
[1720177641872,6.0182,128.91,128.83,100.0]
[1720177642174,34.73,128.9,128.83,100.0]
[1720177642980,34.73,128.88,128.81,100.0]
[1720177643147,34.73,128.88,128.79,200.0]
[1720177644369,34.73,128.88,128.82,200.0]
[1720177644586,14.12861094,128.91,128.86,100.0]
[1720177644953,6.0182,128.91,128.86,200.0]
[1720177645159,6.0182,128.91,128.88,100.0]
[1720177645362,53.98254471,128.95,128.88,100.0]
[1720177645557,53.98254471,128.95,128.86,200.0]
[1720177645768,19.25254471,128.95,128.88,100.0]
[1720177645951,17.4481,128.95,128.88,100.0]
[1720177646350,17.4481,128.95,128.86,200.0]
[1720177646587,17.4481,128.95,128.88,100.0]
[1720177647263,17.4481,128.95,128.86,200.0]
[1720177647582,17.4481,128.95,128.89,100.0]
[1720177648387,17.4481,128.95,128.91,100.0]
[1720177648880,17.4481,128.95,128.87,220.0]
[1720177651681,17.4481,128.95,128.87,120.0]
[1720177651986,17.4481,128.95,128.87,220.0]
[1720177652284,17.4481,128.95,128.87,120.0]
[1720177652494,17.4481,128.95,128.87,20.0]
[1720177652664,17.4481,128.95,128.86,20.0]
[1720177652865,17.4481,128.95,128.82,222.0277]
[1720177653082,7.9257,128.94,128.82,207.7626]
[1720177653593,0.17,128.94,128.84,100.0]
[1720177653777,7.9255,128.94,128.84,100.0]
[1720177654087,15.08453198,128.94,128.84,100.0]
[1720177655565,15.08453198,128.94,128.82,207.7625]
[1720177655772,7.32903198,128.94,128.85,100.0]
[1720177655991,7.15903198,128.94,128.87,100.0]
[1720177657686,7.15903198,128.94,128.88,100.0]
[1720177657863,7.15903198,128.94,128.89,100.0]
[1720177658884,17.4481,128.95,128.9,100.0]
[1720177659088,17.4481,128.95,128.91,100.0]
[1720177661115,13.16403198,128.98,128.91,100.0]
[1720177661288,13.16403198,128.98,128.93,100.0]
[1720177661668,13.16403198,128.98,128.9,200.17]
[1720177661972,20.91713198,128.98,128.9,200.17]
[1720177663417,13.16403198,128.98,128.91,0.17]
[1720177664791,13.7582,128.98,128.9,200.0]
[1720177665087,7.15903198,128.97,128.9,200.0]
[1720177665397,7.15903198,128.97,128.9,100.0]
[1720177666773,7.15903198,128.97,128.89,0.17]
[1720177666974,7.15903198,128.97,128.89,20.17]
[1720177667897,41.86903198,128.97,128.9,100.0]
[1720177668111,41.86903198,128.97,128.9,200.0]
[1720177668272,0.17,128.96,128.89,20.0]
[1720177668610,34.71,128.95,128.89,20.0]
[1720177669997,34.71,128.95,128.89,120.0]
[1720177670204,34.71,128.95,128.89,20.0]
[1720177671203,42.4655,128.95,128.85,200.0]
[1720177671405,34.71,128.95,128.87,100.0]
[1720177671907,34.71,128.95,128.87,200.0]
[1720177673396,15.26685594,128.96,128.89,200.0]
[1720177673595,15.26685594,128.96,128.88,0.17]
[1720177673786,15.26685594,128.96,128.89,100.0]
[1720177676386,8.10782396,128.96,128.89,100.0]
[1720177677304,15.86252396,128.96,128.88,100.0]
[1720177677603,15.86252396,128.96,128.86,100.0]
[1720177677604,46.1923,128.95,128.89,20.0]
[1720177677977,46.1923,128.95,128.88,100.0]
[1720177678181,46.1923,128.95,128.89,20.0]
[1720177678714,46.0223,128.95,128.89,20.0]
[1720177679202,11.3123,128.95,128.89,20.0]
[1720177680906,11.3123,128.95,128.87,100.0]
[1720177680907,11.3123,128.95,128.88,20.0]
[1720177681494,11.3123,128.95,128.88,120.0]
[1720177682109,15.26685594,128.96,128.92,200.0]
[1720177682282,8.10782396,128.96,128.92,200.0]
[1720177682496,17.3173,128.98,128.92,200.0]
[1720177683112,8.1057757,128.99,128.95,100.0]
[1720177683313,17.8501,129.02,128.94,200.0]
[1720177683496,17.8501,129.02,128.93,0.17]
[1720177683698,34.71,129.01,128.92,200.0]
[1720177684008,42.4614,129.01,128.92,200.0]
[1720177684408,45.37802536,129.01,128.92,200.0]
[1720177684603,37.62662536,129.01,128.9,115.1007]
[1720177684828,24.05264699,129.02,128.9,100.0]
[1720177684829,42.4634,128.98,128.9,100.0]
[1720177685193,6.00325072,129.0,128.92,100.0]
[1720177685194,5.83325072,129.0,128.92,100.0]
[1720177685506,42.4617,129.01,128.91,100.0]
[1720177685689,7.7522,129.0,128.93,100.0]
[1720177686413,42.4614,129.01,128.93,100.0]
[1720177686727,7.7522,129.0,128.91,200.0]
[1720177686895,7.7519,129.0,128.91,200.0]
[1720177687299,0.17,128.99,128.91,200.0]
[1720177687506,10.65774332,129.0,128.91,200.0]
[1720177687710,42.4643,128.97,128.88,20.0]
[1720177687903,34.71,128.97,128.88,20.0]
[1720177688820,42.4638,128.97,128.88,20.0]
[1720177689019,34.71,128.97,128.88,20.0]